[Event "Titled Tuesday Blitz April 26 Early 2022"]
[White "Tasev, Dejan"]
[Black "Swiercz, Dariusz"]
[WhiteFideId "936618"]
[BlackFideId "1126881"]
[WhiteElo "2253"]
[BlackElo "2627"]
[Result "0-1"]
[Round "04"]
[TimeControl "180+1"]
[Date "2022.04.26"]
[WhiteClock "0:00:10"]
[BlackClock "0:00:12"]

1. e4 {[%clk 0:03:00]}  c6 {[%clk 0:03:00]} 2. d4 {[%clk 0:03:00]}  d5 {[%clk 0:03:01]} 3. Nc3 {[%clk 0:03:01]}  dxe4 {[%clk 0:03:01]} 4. Nxe4 {[%clk 0:03:01]}  Nf6 {[%clk 0:03:02]} 5. Nxf6+ {[%clk 0:03:01]}  exf6 {[%clk 0:03:03]} 6. c3 {[%clk 0:03:02]}  Bd6 {[%clk 0:03:03]} 7. Bd3 {[%clk 0:03:02]}  O-O {[%clk 0:03:04]} 8. Qc2 {[%clk 0:03:01]}  h5 {[%clk 0:03:04]} 9. Ne2 {[%clk 0:03:01]}  Re8 {[%clk 0:03:04]} 10. h3 {[%clk 0:03:01]}  Nd7 {[%clk 0:03:00]} 11. Bd2 {[%clk 0:02:57]}  b5 {[%clk 0:02:59]} 12. O-O-O {[%clk 0:02:47]}  Nb6 {[%clk 0:02:49]} 13. g4 {[%clk 0:02:46]}  h4 {[%clk 0:02:50]} 14. Rhg1 {[%clk 0:02:46]}  g6 {[%clk 0:02:22]} 15. Bxg6 {[%clk 0:02:21]}  Rxe2 {[%clk 0:02:21]} 16. Bxf7+ {[%clk 0:02:16]}  Kxf7 {[%clk 0:01:57]} 17. Qh7+ {[%clk 0:02:13]}  Ke8 {[%clk 0:01:58]} 18. Rde1 {[%clk 0:02:07]}  Re7 {[%clk 0:01:51]} 19. g5 {[%clk 0:01:43]}  Kd7 {[%clk 0:01:51]} 20. Rxe7+ {[%clk 0:01:27]}  Qxe7 {[%clk 0:01:45]} 21. g6 {[%clk 0:01:27]}  Kc7 {[%clk 0:01:30]} 22. g7 {[%clk 0:01:15]}  Be6 {[%clk 0:01:23]} 23. Qxh4 {[%clk 0:01:05]}  Rg8 {[%clk 0:01:18]} 24. Qh7 {[%clk 0:00:59]}  Bxa2 {[%clk 0:01:13]} 25. h4 {[%clk 0:00:56]}  Bf7 {[%clk 0:00:57]} 26. h5 {[%clk 0:00:40]}  Nc4 {[%clk 0:00:57]} 27. h6 {[%clk 0:00:37]}  Nxd2 {[%clk 0:00:57]} 28. Kxd2 {[%clk 0:00:35]}  Bf4+ {[%clk 0:00:55]} 29. Kc2 {[%clk 0:00:31]}  Qe2+ {[%clk 0:00:52]} 30. Kb1 {[%clk 0:00:30]}  Qxf2 {[%clk 0:00:31]} 31. Rd1 {[%clk 0:00:25]}  Qg3 {[%clk 0:00:24]} 32. Ka1 {[%clk 0:00:18]}  Qg6 {[%clk 0:00:22]} 33. Qxg6 {[%clk 0:00:18]}  Bxg6 {[%clk 0:00:23]} 34. Rf1 {[%clk 0:00:17]}  Bg5 {[%clk 0:00:23]} 35. Rg1 {[%clk 0:00:15]}  Bh7 {[%clk 0:00:22]} 36. Re1 {[%clk 0:00:13]}  Bxh6 {[%clk 0:00:22]} 37. Re7+ {[%clk 0:00:14]}  Kd6 {[%clk 0:00:23]} 38. Rxa7 {[%clk 0:00:14]}  Rxg7 {[%clk 0:00:23]} 39. Ra8 {[%clk 0:00:13]}  Bg8 {[%clk 0:00:22]} 40. b4 {[%clk 0:00:12]}  Bd5 {[%clk 0:00:20]} 41. Kb2 {[%clk 0:00:12]}  Rg2+ {[%clk 0:00:19]} 42. Kb1 {[%clk 0:00:12]}  Bd2 {[%clk 0:00:18]} 43. Ra3 {[%clk 0:00:11]}  Be4+ {[%clk 0:00:17]} 44. Ka1 {[%clk 0:00:11]}  Bc1 {[%clk 0:00:16]} 45. Ra8 {[%clk 0:00:09]}  Bb2+ {[%clk 0:00:16]} 46. Ka2 {[%clk 0:00:10]}  Bxc3+ {[%clk 0:00:16]} 47. Kb3 {[%clk 0:00:10]}  Rg3 {[%clk 0:00:14]} 48. Rd8+ {[%clk 0:00:10]}  Kc7 {[%clk 0:00:14]} 49. Re8 {[%clk 0:00:10]}  Bxd4+ {[%clk 0:00:14]} 50. Ka2 {[%clk 0:00:11]}  Bd5+ {[%clk 0:00:14]} 51. Kb1 {[%clk 0:00:11]}  Bb3 {[%clk 0:00:12]} 52. Re7+ {[%clk 0:00:10]}  Kd6 {[%clk 0:00:12]} 53. Re8 {[%clk 0:00:10]}  Rg1+ {[%clk 0:00:12]} 0-1


[Site "https://www.chess.com"]

[Event "Titled Tuesday Blitz April 26 Early 2022"]
[White "Toncheva, Nadya"]
[Black "Cunha, Lucas Aguiar"]
[WhiteFideId "2924056"]
[BlackFideId "2125404"]
[WhiteElo "1884"]
[BlackElo "2361"]
[Result "1-0"]
[Round "04"]
[TimeControl "180+1"]
[Date "2022.04.26"]
[WhiteClock "0:00:19"]
[BlackClock "0:01:33"]

1. e4 {[%clk 0:03:00]}  c5 {[%clk 0:03:00]} 2. Nf3 {[%clk 0:03:00]}  e6 {[%clk 0:03:00]} 3. d4 {[%clk 0:03:00]}  cxd4 {[%clk 0:03:01]} 4. Nxd4 {[%clk 0:03:01]}  Nc6 {[%clk 0:03:02]} 5. Nc3 {[%clk 0:03:01]}  Qc7 {[%clk 0:02:58]} 6. f4 {[%clk 0:03:01]}  b6 {[%clk 0:02:57]} 7. Be3 {[%clk 0:02:51]}  Nxd4 {[%clk 0:02:57]} 8. Qxd4 {[%clk 0:02:47]}  Bb7 {[%clk 0:02:57]} 9. O-O-O {[%clk 0:02:44]}  Rc8 {[%clk 0:02:57]} 10. Kb1 {[%clk 0:02:41]}  Nf6 {[%clk 0:02:55]} 11. Be2 {[%clk 0:02:03]}  Bc5 {[%clk 0:02:46]} 12. Qd3 {[%clk 0:02:03]}  O-O {[%clk 0:02:35]} 13. e5 {[%clk 0:02:00]}  Nd5 {[%clk 0:02:35]} 14. Nxd5 {[%clk 0:01:57]}  Bxd5 {[%clk 0:02:34]} 15. c3 {[%clk 0:01:46]}  f6 {[%clk 0:02:30]} 16. Bxc5 {[%clk 0:01:16]}  Qxc5 {[%clk 0:02:29]} 17. exf6 {[%clk 0:01:17]}  Rxf6 {[%clk 0:02:30]} 18. Bf3 {[%clk 0:01:17]}  Bxf3 {[%clk 0:02:23]} 19. Qxf3 {[%clk 0:01:16]}  d5 {[%clk 0:02:23]} 20. Rhe1 {[%clk 0:01:09]}  Rcf8 {[%clk 0:02:21]} 21. Qh3 {[%clk 0:01:01]}  Qc6 {[%clk 0:02:01]} 22. g3 {[%clk 0:00:51]}  Qe8 {[%clk 0:01:48]} 23. Rd2 {[%clk 0:00:46]}  Qg6+ {[%clk 0:01:47]} 24. Ka1 {[%clk 0:00:42]}  b5 {[%clk 0:01:46]} 25. Rde2 {[%clk 0:00:40]}  Re8 {[%clk 0:01:42]} 26. Re5 {[%clk 0:00:27]}  a5 {[%clk 0:01:36]} 27. f5 {[%clk 0:00:18]}  Rxf5 {[%clk 0:01:35]} 28. Qxf5 {[%clk 0:00:18]}  exf5 {[%clk 0:01:32]} 29. Rxe8+ {[%clk 0:00:18]}  Kf7 {[%clk 0:01:32]} 30. R1e7+ {[%clk 0:00:19]}  Kf6 {[%clk 0:01:33]} 31. Re6+ {[%clk 0:00:19]} 1-0


[Site "https://www.chess.com"]

[Event "Titled Tuesday Blitz April 26 Early 2022"]
[White "Tristan, Leonardo"]
[Black "Lach, Aleksandra"]
[WhiteFideId "113816"]
[BlackFideId "1134299"]
[WhiteElo "2404"]
[BlackElo "2172"]
[Result "1-0"]
[Round "04"]
[TimeControl "180+1"]
[Date "2022.04.26"]
[WhiteClock "0:00:17"]
[BlackClock "0:00:10"]

1. d4 {[%clk 0:03:00]}  f5 {[%clk 0:02:59]} 2. Nf3 {[%clk 0:03:00]}  Nf6 {[%clk 0:02:58]} 3. g3 {[%clk 0:03:01]}  g6 {[%clk 0:02:57]} 4. Bg2 {[%clk 0:03:01]}  Bg7 {[%clk 0:02:57]} 5. O-O {[%clk 0:03:02]}  O-O {[%clk 0:02:58]} 6. Nbd2 {[%clk 0:03:02]}  d6 {[%clk 0:02:55]} 7. Re1 {[%clk 0:03:03]}  d5 {[%clk 0:02:48]} 8. Ne5 {[%clk 0:03:00]}  c6 {[%clk 0:02:47]} 9. c4 {[%clk 0:03:00]}  Be6 {[%clk 0:02:35]} 10. Ndf3 {[%clk 0:02:58]}  Ne4 {[%clk 0:02:29]} 11. Qb3 {[%clk 0:02:52]}  Qb6 {[%clk 0:02:19]} 12. c5 {[%clk 0:02:52]}  Qxb3 {[%clk 0:02:06]} 13. axb3 {[%clk 0:02:53]}  Na6 {[%clk 0:02:06]} 14. Nd3 {[%clk 0:02:52]}  Nc7 {[%clk 0:02:03]} 15. b4 {[%clk 0:02:51]}  b6 {[%clk 0:02:02]} 16. Nfe5 {[%clk 0:02:48]}  bxc5 {[%clk 0:02:01]} 17. bxc5 {[%clk 0:02:48]}  Nb5 {[%clk 0:01:59]} 18. e3 {[%clk 0:02:38]}  Rfc8 {[%clk 0:01:59]} 19. Ra6 {[%clk 0:02:36]}  Bf7 {[%clk 0:01:33]} 20. Nxc6 {[%clk 0:02:31]}  Kf8 {[%clk 0:01:29]} 21. Nce5 {[%clk 0:02:30]}  Be8 {[%clk 0:01:29]} 22. Nf4 {[%clk 0:02:29]}  Nc7 {[%clk 0:01:26]} 23. Ra5 {[%clk 0:02:13]}  Bxe5 {[%clk 0:01:21]} 24. dxe5 {[%clk 0:02:13]}  e6 {[%clk 0:01:22]} 25. b4 {[%clk 0:02:12]}  Ke7 {[%clk 0:01:16]} 26. Bb2 {[%clk 0:02:12]}  Rcb8 {[%clk 0:01:12]} 27. Nd3 {[%clk 0:02:12]}  Bb5 {[%clk 0:01:09]} 28. Nc1 {[%clk 0:02:03]}  Bc4 {[%clk 0:01:06]} 29. f3 {[%clk 0:01:59]}  Nd2 {[%clk 0:01:01]} 30. Bc3 {[%clk 0:01:57]}  Nb1 {[%clk 0:01:00]} 31. Bd4 {[%clk 0:01:50]}  Rxb4 {[%clk 0:00:54]} 32. c6 {[%clk 0:01:51]}  Rb5 {[%clk 0:00:53]} 33. Rxa7 {[%clk 0:01:43]}  Rxa7 {[%clk 0:00:54]} 34. Bxa7 {[%clk 0:01:44]}  Nc3 {[%clk 0:00:46]} 35. Bf1 {[%clk 0:01:34]}  Bxf1 {[%clk 0:00:44]} 36. Kxf1 {[%clk 0:01:35]}  Rb2 {[%clk 0:00:22]} 37. Bd4 {[%clk 0:01:35]}  Rc2 {[%clk 0:00:21]} 38. Nd3 {[%clk 0:01:35]}  N3b5 {[%clk 0:00:20]} 39. Bc5+ {[%clk 0:01:11]}  Kd8 {[%clk 0:00:20]} 40. Rc1 {[%clk 0:00:41]}  Rxh2 {[%clk 0:00:19]} 41. Nf2 {[%clk 0:00:40]}  g5 {[%clk 0:00:16]} 42. Bf8 {[%clk 0:00:32]}  Ke8 {[%clk 0:00:14]} 43. Bd6 {[%clk 0:00:30]}  Kd8 {[%clk 0:00:14]} 44. Rb1 {[%clk 0:00:26]}  f4 {[%clk 0:00:13]} 45. gxf4 {[%clk 0:00:24]}  gxf4 {[%clk 0:00:14]} 46. exf4 {[%clk 0:00:25]}  Rh4 {[%clk 0:00:14]} 47. Bxc7+ {[%clk 0:00:23]}  Nxc7 {[%clk 0:00:14]} 48. Rb8+ {[%clk 0:00:23]}  Ke7 {[%clk 0:00:14]} 49. Rc8 {[%clk 0:00:24]}  Nb5 {[%clk 0:00:14]} 50. Ng4 {[%clk 0:00:23]}  Rh1+ {[%clk 0:00:13]} 51. Kg2 {[%clk 0:00:23]}  Rc1 {[%clk 0:00:14]} 52. Nf6 {[%clk 0:00:23]}  Rc2+ {[%clk 0:00:14]} 53. Kg3 {[%clk 0:00:22]}  d4 {[%clk 0:00:14]} 54. Ne4 {[%clk 0:00:21]}  d3 {[%clk 0:00:14]} 55. Rb8 {[%clk 0:00:21]}  Nd4 {[%clk 0:00:14]} 56. Rb7+ {[%clk 0:00:19]}  Kd8 {[%clk 0:00:14]} 57. Rd7+ {[%clk 0:00:16]}  Kc8 {[%clk 0:00:11]} 58. Rxd4 {[%clk 0:00:17]}  Rxc6 {[%clk 0:00:11]} 59. Rxd3 {[%clk 0:00:18]}  Rc1 {[%clk 0:00:11]} 60. Ng5 {[%clk 0:00:17]}  h6 {[%clk 0:00:10]} 61. Nxe6 {[%clk 0:00:17]} 1-0


[Site "https://www.chess.com"]

[Event "Titled Tuesday Blitz April 26 Early 2022"]
[White "Unver, Cumali"]
[Black "Terzi, Alexei"]
[WhiteFideId "6304940"]
[BlackFideId "13505076"]
[WhiteElo "2013"]
[BlackElo "2031"]
[Result "0-1"]
[Round "04"]
[TimeControl "180+1"]
[Date "2022.04.26"]
[WhiteClock "0:01:07"]
[BlackClock "0:00:40"]

1. e4 {[%clk 0:03:00]}  c5 {[%clk 0:02:59]} 2. Nf3 {[%clk 0:03:00]}  Nc6 {[%clk 0:02:58]} 3. c3 {[%clk 0:02:58]}  Nf6 {[%clk 0:02:58]} 4. e5 {[%clk 0:02:57]}  Nd5 {[%clk 0:02:58]} 5. d4 {[%clk 0:02:57]}  cxd4 {[%clk 0:02:59]} 6. cxd4 {[%clk 0:02:56]}  e6 {[%clk 0:02:59]} 7. a3 {[%clk 0:02:55]}  d6 {[%clk 0:02:59]} 8. Bd3 {[%clk 0:02:54]}  Be7 {[%clk 0:02:54]} 9. O-O {[%clk 0:02:54]}  O-O {[%clk 0:02:54]} 10. Qc2 {[%clk 0:02:53]}  h6 {[%clk 0:02:54]} 11. Qe2 {[%clk 0:02:54]}  dxe5 {[%clk 0:02:37]} 12. dxe5 {[%clk 0:02:53]}  f5 {[%clk 0:02:37]} 13. exf6 {[%clk 0:02:49]}  Nxf6 {[%clk 0:02:33]} 14. Rd1 {[%clk 0:02:47]}  Qa5 {[%clk 0:02:26]} 15. Nc3 {[%clk 0:02:45]}  Qh5 {[%clk 0:02:22]} 16. Bc4 {[%clk 0:02:35]}  Kh8 {[%clk 0:02:16]} 17. Bxe6 {[%clk 0:02:32]}  Bxe6 {[%clk 0:02:17]} 18. Qxe6 {[%clk 0:02:32]}  Bc5 {[%clk 0:02:11]} 19. Be3 {[%clk 0:01:52]}  Rae8 {[%clk 0:02:00]} 20. Qc4 {[%clk 0:01:47]}  Rxe3 {[%clk 0:01:46]} 21. fxe3 {[%clk 0:01:48]}  Bxe3+ {[%clk 0:01:45]} 22. Kh1 {[%clk 0:01:44]}  Ng4 {[%clk 0:01:41]} 23. Rd5 {[%clk 0:01:21]}  Nf2+ {[%clk 0:01:36]} 24. Kg1 {[%clk 0:01:20]}  Ne4+ {[%clk 0:01:34]} 25. Kf1 {[%clk 0:01:10]}  Rxf3+ {[%clk 0:00:53]} 26. gxf3 {[%clk 0:01:10]}  Qxf3+ {[%clk 0:00:43]} 27. Ke1 {[%clk 0:01:10]}  Bf2+ {[%clk 0:00:41]} 28. Kf1 {[%clk 0:01:07]}  Bg3+ {[%clk 0:00:40]} 0-1


[Site "https://www.chess.com"]

[Event "Titled Tuesday Blitz April 26 Early 2022"]
[White "Urbina Perez, Juan Antonio"]
[Black "Mikhnenko, Alexander"]
[WhiteFideId "2217368"]
[BlackFideId "34143014"]
[WhiteElo "2192"]
[BlackElo "2117"]
[Result "0-1"]
[Round "04"]
[TimeControl "180+1"]
[Date "2022.04.26"]
[WhiteClock "0:01:59"]
[BlackClock "0:01:13"]

1. e4 {[%clk 0:02:55]}  e5 {[%clk 0:03:00]} 2. Nf3 {[%clk 0:02:55]}  Nc6 {[%clk 0:03:00]} 3. Bc4 {[%clk 0:02:55]}  Nf6 {[%clk 0:03:00]} 4. d3 {[%clk 0:02:55]}  Be7 {[%clk 0:02:57]} 5. O-O {[%clk 0:02:54]}  O-O {[%clk 0:02:57]} 6. Nc3 {[%clk 0:02:54]}  d6 {[%clk 0:02:57]} 7. a4 {[%clk 0:02:54]}  a6 {[%clk 0:02:50]} 8. a5 {[%clk 0:02:54]}  h6 {[%clk 0:02:42]} 9. h3 {[%clk 0:02:53]}  Be6 {[%clk 0:02:40]} 10. Re1 {[%clk 0:02:51]}  Nh7 {[%clk 0:02:36]} 11. Nd5 {[%clk 0:02:35]}  Kh8 {[%clk 0:01:49]} 12. Nxe7 {[%clk 0:02:27]}  Qxe7 {[%clk 0:01:50]} 13. Bxe6 {[%clk 0:02:26]}  Qxe6 {[%clk 0:01:49]} 14. d4 {[%clk 0:02:26]}  Ne7 {[%clk 0:01:34]} 15. c3 {[%clk 0:02:22]}  Nf6 {[%clk 0:01:27]} 16. Qc2 {[%clk 0:02:15]}  Ng6 {[%clk 0:01:26]} 17. Be3 {[%clk 0:02:11]}  Nh5 {[%clk 0:01:24]} 18. Rad1 {[%clk 0:02:07]}  Nhf4 {[%clk 0:01:23]} 19. Bxf4 {[%clk 0:02:04]}  Nxf4 {[%clk 0:01:22]} 20. Kh2 {[%clk 0:02:02]}  Rad8 {[%clk 0:01:13]} 21. g3 {[%clk 0:02:00]}  Qxh3+ {[%clk 0:01:12]} 22. Kg1 {[%clk 0:01:59]}  Qg2# {[%clk 0:01:13]} 0-1


[Site "https://www.chess.com"]

[Event "Titled Tuesday Blitz April 26 Early 2022"]
[White "Vlassov, Nikolai"]
[Black "Rodrigues, Bruno Morado"]
[WhiteFideId "4103360"]
[BlackFideId "2115654"]
[WhiteElo "2407"]
[BlackElo "2040"]
[Result "1/2-1/2"]
[Round "04"]
[TimeControl "180+1"]
[Date "2022.04.26"]
[WhiteClock "0:00:04"]
[BlackClock "0:00:11"]

1. e4 {[%clk 0:03:00]}  c5 {[%clk 0:02:59]} 2. c3 {[%clk 0:03:00]}  d5 {[%clk 0:02:59]} 3. exd5 {[%clk 0:03:01]}  Qxd5 {[%clk 0:03:00]} 4. d4 {[%clk 0:03:01]}  Nc6 {[%clk 0:03:01]} 5. Nf3 {[%clk 0:03:01]}  Bg4 {[%clk 0:03:02]} 6. Be2 {[%clk 0:02:59]}  e6 {[%clk 0:03:02]} 7. O-O {[%clk 0:02:58]}  Nf6 {[%clk 0:03:01]} 8. Be3 {[%clk 0:02:58]}  cxd4 {[%clk 0:03:01]} 9. cxd4 {[%clk 0:02:58]}  Be7 {[%clk 0:03:02]} 10. Nc3 {[%clk 0:02:59]}  Qd6 {[%clk 0:03:03]} 11. h3 {[%clk 0:02:57]}  Bh5 {[%clk 0:03:02]} 12. Qb3 {[%clk 0:02:57]}  O-O {[%clk 0:03:02]} 13. Rfd1 {[%clk 0:02:46]}  Rfd8 {[%clk 0:03:01]} 14. g4 {[%clk 0:02:31]}  Bg6 {[%clk 0:03:01]} 15. Ne5 {[%clk 0:02:32]}  Nxe5 {[%clk 0:02:52]} 16. dxe5 {[%clk 0:02:32]}  Qxe5 {[%clk 0:02:53]} 17. Rxd8+ {[%clk 0:02:30]}  Rxd8 {[%clk 0:02:54]} 18. Qxb7 {[%clk 0:02:29]}  Bc5 {[%clk 0:02:48]} 19. Rd1 {[%clk 0:02:19]}  Re8 {[%clk 0:02:25]} 20. Qb5 {[%clk 0:02:04]}  Bd6 {[%clk 0:01:47]} 21. Qxe5 {[%clk 0:02:00]}  Bxe5 {[%clk 0:01:47]} 22. Bxa7 {[%clk 0:01:59]}  h5 {[%clk 0:01:29]} 23. g5 {[%clk 0:01:53]}  Bxc3 {[%clk 0:01:26]} 24. bxc3 {[%clk 0:01:48]}  Ne4 {[%clk 0:01:21]} 25. Rc1 {[%clk 0:01:31]}  Ra8 {[%clk 0:01:15]} 26. Be3 {[%clk 0:01:30]}  Rxa2 {[%clk 0:01:14]} 27. Bf3 {[%clk 0:01:29]}  Ra8 {[%clk 0:00:52]} 28. c4 {[%clk 0:01:27]}  Rc8 {[%clk 0:00:52]} 29. c5 {[%clk 0:01:26]}  Kf8 {[%clk 0:00:51]} 30. c6 {[%clk 0:01:07]}  Ke7 {[%clk 0:00:50]} 31. c7 {[%clk 0:01:06]}  Kd7 {[%clk 0:00:46]} 32. Bf4 {[%clk 0:00:56]}  f6 {[%clk 0:00:36]} 33. Rd1+ {[%clk 0:00:28]}  Ke7 {[%clk 0:00:35]} 34. Bxe4 {[%clk 0:00:23]}  Bxe4 {[%clk 0:00:36]} 35. Bd6+ {[%clk 0:00:22]}  Kd7 {[%clk 0:00:24]} 36. gxf6 {[%clk 0:00:21]}  gxf6 {[%clk 0:00:21]} 37. Bg3+ {[%clk 0:00:16]}  Ke7 {[%clk 0:00:20]} 38. Bd6+ {[%clk 0:00:15]}  Kd7 {[%clk 0:00:20]} 39. Bg3+ {[%clk 0:00:13]}  Ke7 {[%clk 0:00:20]} 40. Rd4 {[%clk 0:00:12]}  Bb7 {[%clk 0:00:16]} 41. Bd6+ {[%clk 0:00:11]}  Kd7 {[%clk 0:00:17]} 42. Bg3+ {[%clk 0:00:12]}  Bd5 {[%clk 0:00:17]} 43. Rh4 {[%clk 0:00:11]}  e5 {[%clk 0:00:16]} 44. Rxh5 {[%clk 0:00:10]}  Rxc7 {[%clk 0:00:16]} 45. f4 {[%clk 0:00:11]}  Rc1+ {[%clk 0:00:15]} 46. Kf2 {[%clk 0:00:11]}  Rc2+ {[%clk 0:00:15]} 47. Ke1 {[%clk 0:00:11]}  Rc3 {[%clk 0:00:13]} 48. Bh4 {[%clk 0:00:08]}  Ke6 {[%clk 0:00:12]} 49. Rh6 {[%clk 0:00:07]}  exf4 {[%clk 0:00:13]} 50. Bxf6 {[%clk 0:00:06]}  Re3+ {[%clk 0:00:12]} 51. Kf2 {[%clk 0:00:06]}  Kf5 {[%clk 0:00:13]} 52. Bd4 {[%clk 0:00:05]}  Rf3+ {[%clk 0:00:13]} 53. Ke2 {[%clk 0:00:05]}  Ra3 {[%clk 0:00:14]} 54. Bc5 {[%clk 0:00:04]}  Ra2+ {[%clk 0:00:13]} 55. Kd3 {[%clk 0:00:05]}  Be4+ {[%clk 0:00:13]} 56. Kd4 {[%clk 0:00:05]}  Rd2+ {[%clk 0:00:13]} 57. Kc3 {[%clk 0:00:06]}  Rd3+ {[%clk 0:00:13]} 58. Kc4 {[%clk 0:00:06]}  Rd7 {[%clk 0:00:12]} 59. Rh8 {[%clk 0:00:06]}  f3 {[%clk 0:00:11]} 60. Rf8+ {[%clk 0:00:06]}  Kg5 {[%clk 0:00:11]} 61. Bd4 {[%clk 0:00:06]}  Rc7+ {[%clk 0:00:10]} 62. Kb5 {[%clk 0:00:05]}  Kh4 {[%clk 0:00:10]} 63. Rf4+ {[%clk 0:00:04]}  Kxh3 {[%clk 0:00:10]} 64. Rxe4 {[%clk 0:00:05]}  Rf7 {[%clk 0:00:10]} 65. Re1 {[%clk 0:00:03]}  f2 {[%clk 0:00:10]} 66. Rf1 {[%clk 0:00:03]}  Kg2 {[%clk 0:00:10]} 67. Rxf2+ {[%clk 0:00:04]}  Rxf2 {[%clk 0:00:11]} 68. Bxf2 {[%clk 0:00:04]} 1/2-1/2


[Site "https://www.chess.com"]

[Event "Titled Tuesday Blitz April 26 Early 2022"]
[White "Xu, Yi"]
[Black "Xiong, Jeffery"]
[WhiteFideId "8605564"]
[BlackFideId "2047640"]
[WhiteElo "2471"]
[BlackElo "2727"]
[Result "0-1"]
[Round "04"]
[TimeControl "180+1"]
[Date "2022.04.26"]
[WhiteClock "0:00:07"]
[BlackClock "0:00:19"]

1. e4 {[%clk 0:03:00]}  c5 {[%clk 0:02:00]} 2. Nf3 {[%clk 0:02:59]}  d6 {[%clk 0:02:01]} 3. d4 {[%clk 0:02:58]}  cxd4 {[%clk 0:02:02]} 4. Nxd4 {[%clk 0:02:57]}  Nf6 {[%clk 0:02:02]} 5. Nc3 {[%clk 0:02:58]}  a6 {[%clk 0:02:03]} 6. f3 {[%clk 0:02:48]}  e5 {[%clk 0:02:02]} 7. Nb3 {[%clk 0:02:48]}  Be6 {[%clk 0:02:03]} 8. Be3 {[%clk 0:02:49]}  Nbd7 {[%clk 0:02:03]} 9. g4 {[%clk 0:02:48]}  b5 {[%clk 0:02:03]} 10. g5 {[%clk 0:02:42]}  b4 {[%clk 0:02:03]} 11. Ne2 {[%clk 0:02:41]}  Ng8 {[%clk 0:02:03]} 12. f4 {[%clk 0:02:18]}  h6 {[%clk 0:02:02]} 13. f5 {[%clk 0:02:04]}  Bxb3 {[%clk 0:02:02]} 14. axb3 {[%clk 0:02:04]}  hxg5 {[%clk 0:02:03]} 15. Qd2 {[%clk 0:02:02]}  Be7 {[%clk 0:02:03]} 16. Qxb4 {[%clk 0:01:41]}  d5 {[%clk 0:02:03]} 17. Qa4 {[%clk 0:01:38]}  d4 {[%clk 0:02:02]} 18. Bd2 {[%clk 0:01:35]}  Nf6 {[%clk 0:01:46]} 19. Ng3 {[%clk 0:01:35]}  Kf8 {[%clk 0:01:47]} 20. b4 {[%clk 0:01:30]}  Nh5 {[%clk 0:01:19]} 21. Nxh5 {[%clk 0:01:25]}  Rxh5 {[%clk 0:01:20]} 22. Bxa6 {[%clk 0:01:15]}  Rh4 {[%clk 0:01:20]} 23. O-O-O {[%clk 0:00:52]}  Nb8 {[%clk 0:00:56]} 24. b5 {[%clk 0:00:51]}  Nxa6 {[%clk 0:00:56]} 25. bxa6 {[%clk 0:00:51]}  Qb6 {[%clk 0:00:57]} 26. Qc4 {[%clk 0:00:24]}  Rxe4 {[%clk 0:00:45]} 27. Rde1 {[%clk 0:00:18]}  Qxa6 {[%clk 0:00:45]} 28. Qxa6 {[%clk 0:00:15]}  Rxa6 {[%clk 0:00:46]} 29. Kb1 {[%clk 0:00:12]}  Rxe1+ {[%clk 0:00:46]} 30. Rxe1 {[%clk 0:00:13]}  f6 {[%clk 0:00:44]} 31. c3 {[%clk 0:00:13]}  dxc3 {[%clk 0:00:42]} 32. Bxc3 {[%clk 0:00:13]}  Ra4 {[%clk 0:00:43]} 33. Rf1 {[%clk 0:00:11]}  Rh4 {[%clk 0:00:43]} 34. Rf2 {[%clk 0:00:11]}  Bc5 {[%clk 0:00:41]} 35. Rc2 {[%clk 0:00:12]}  Bd6 {[%clk 0:00:38]} 36. Rd2 {[%clk 0:00:10]}  Ke7 {[%clk 0:00:38]} 37. Rf2 {[%clk 0:00:08]}  e4 {[%clk 0:00:25]} 38. Bd4 {[%clk 0:00:07]}  Rxh2 {[%clk 0:00:20]} 39. Rxh2 {[%clk 0:00:07]}  Bxh2 {[%clk 0:00:20]} 40. Kc2 {[%clk 0:00:07]}  g4 {[%clk 0:00:21]} 41. Kd2 {[%clk 0:00:07]}  g3 {[%clk 0:00:21]} 42. Ke3 {[%clk 0:00:07]}  Bg1+ {[%clk 0:00:19]} 0-1


[Site "https://www.chess.com"]

[Event "Titled Tuesday Blitz April 26 Early 2022"]
[White "Yang, Kaiqi"]
[Black "Bas Mas, Jose Joaquin"]
[WhiteFideId "8604398"]
[BlackFideId "22219064"]
[WhiteElo "2373"]
[BlackElo "2212"]
[Result "1-0"]
[Round "04"]
[TimeControl "180+1"]
[Date "2022.04.26"]
[WhiteClock "0:00:14"]
[BlackClock "0:00:01"]

1. d4 {[%clk 0:03:00]}  f5 {[%clk 0:02:59]} 2. Bg5 {[%clk 0:03:00]}  Nf6 {[%clk 0:02:59]} 3. Bxf6 {[%clk 0:03:00]}  exf6 {[%clk 0:02:59]} 4. e3 {[%clk 0:02:59]}  d5 {[%clk 0:02:59]} 5. c4 {[%clk 0:02:58]}  Bb4+ {[%clk 0:02:55]} 6. Nc3 {[%clk 0:02:57]}  Be6 {[%clk 0:02:53]} 7. Qb3 {[%clk 0:02:57]}  Nc6 {[%clk 0:02:43]} 8. Nh3 {[%clk 0:02:36]}  g5 {[%clk 0:02:33]} 9. a3 {[%clk 0:02:27]}  Bxc3+ {[%clk 0:02:32]} 10. bxc3 {[%clk 0:02:20]}  Na5 {[%clk 0:02:22]} 11. Qa4+ {[%clk 0:02:19]}  c6 {[%clk 0:02:22]} 12. cxd5 {[%clk 0:02:14]}  Bxd5 {[%clk 0:02:18]} 13. c4 {[%clk 0:02:11]}  Bf7 {[%clk 0:02:15]} 14. Bd3 {[%clk 0:02:08]}  Bg6 {[%clk 0:02:06]} 15. O-O {[%clk 0:02:04]}  O-O {[%clk 0:02:05]} 16. Qc2 {[%clk 0:01:47]}  Qd7 {[%clk 0:01:57]} 17. f4 {[%clk 0:01:40]}  g4 {[%clk 0:01:53]} 18. Nf2 {[%clk 0:01:40]}  Rfe8 {[%clk 0:01:48]} 19. Rfe1 {[%clk 0:01:40]}  Re7 {[%clk 0:01:33]} 20. Re2 {[%clk 0:01:35]}  Rae8 {[%clk 0:01:32]} 21. Rae1 {[%clk 0:01:35]}  b6 {[%clk 0:01:22]} 22. Nh1 {[%clk 0:01:34]}  Nb7 {[%clk 0:01:17]} 23. Ng3 {[%clk 0:01:33]}  Nd6 {[%clk 0:01:17]} 24. c5 {[%clk 0:01:30]}  Ne4 {[%clk 0:01:13]} 25. Bxe4 {[%clk 0:01:25]}  fxe4 {[%clk 0:01:12]} 26. Rb1 {[%clk 0:01:13]}  b5 {[%clk 0:01:09]} 27. a4 {[%clk 0:01:12]}  a6 {[%clk 0:01:09]} 28. axb5 {[%clk 0:00:59]}  axb5 {[%clk 0:01:08]} 29. Ra1 {[%clk 0:00:59]}  Bf7 {[%clk 0:01:06]} 30. Ree1 {[%clk 0:00:50]}  h5 {[%clk 0:01:05]} 31. Ra5 {[%clk 0:00:47]}  h4 {[%clk 0:01:04]} 32. Nf1 {[%clk 0:00:40]}  b4 {[%clk 0:00:58]} 33. Nd2 {[%clk 0:00:40]}  Qb7 {[%clk 0:00:46]} 34. Rb1 {[%clk 0:00:39]}  f5 {[%clk 0:00:38]} 35. Nc4 {[%clk 0:00:39]}  Rb8 {[%clk 0:00:25]} 36. Nb6 {[%clk 0:00:34]}  b3 {[%clk 0:00:23]} 37. Qc3 {[%clk 0:00:34]}  Qc7 {[%clk 0:00:15]} 38. Rba1 {[%clk 0:00:26]}  Qd8 {[%clk 0:00:15]} 39. Ra8 {[%clk 0:00:24]}  Reb7 {[%clk 0:00:15]} 40. Qb4 {[%clk 0:00:19]}  Kg7 {[%clk 0:00:13]} 41. Rxb8 {[%clk 0:00:19]}  Rxb8 {[%clk 0:00:13]} 42. Ra7 {[%clk 0:00:19]}  Kf6 {[%clk 0:00:12]} 43. Kf2 {[%clk 0:00:19]}  Bd5 {[%clk 0:00:12]} 44. Ke1 {[%clk 0:00:18]}  Bf7 {[%clk 0:00:09]} 45. Kd2 {[%clk 0:00:19]}  Bg8 {[%clk 0:00:09]} 46. Kc3 {[%clk 0:00:19]}  g3 {[%clk 0:00:09]} 47. h3 {[%clk 0:00:18]}  Bf7 {[%clk 0:00:09]} 48. Kb2 {[%clk 0:00:17]}  Bg8 {[%clk 0:00:08]} 49. Qa5 {[%clk 0:00:14]}  Bf7 {[%clk 0:00:07]} 50. Qa4 {[%clk 0:00:14]}  Bg8 {[%clk 0:00:07]} 51. Qxc6+ {[%clk 0:00:14]}  Be6 {[%clk 0:00:04]} 52. d5 {[%clk 0:00:14]}  Qh8 {[%clk 0:00:01]} 53. Qxe6# {[%clk 0:00:14]} 1-0


[Site "https://www.chess.com"]